[Event "Romanian Superleague 2022"]
[Site "Oradea"]
[Date "2022.09.22"]
[Round "2.11"]
[White "Manea, Alexandru"]
[Black "Ileana, George"]
[Result "0-1"]
[ECO "B55"]
[WhiteElo "2326"]
[BlackElo "2301"]
[Annotator "TA"]
[PlyCount "132"]
[EventDate "2022.09.21"]
[EventType "team-tourn"]
[EventCountry "ROU"]
[SourceTitle "playchess.com"]
[Source "ChessBase"]
[SourceQuality "1"]
[TimeControl "40/5400+30:1800+30"]

{[%evp 13,132,14,15,15,15,12,41,37,23,8,52,37,36,10,21,11,33,0,0,0,8,-10,-14,-14,-12,-20,-20,-24,-27,-18,0,-18,-14,-22,-13,-25,-6,-52,-51,-45,-37,-45,-42,-50,-44,-53,-47,-35,0,-50,-42,-30,-30,-46,-12,-18,0,-33,-41,-47,0,-58,-38,-31,-29,-39,-31,-31,-41,-54,-24,-28,-20,-36,-4,-8,0,-30,-23,-39,-25,-27,-16,-88,-5,0,0,0,0,-14,-14,-55,-54,-73,-81,-94,-100,-163,-163,-304,-277,-300,-294,-408,-408,-408,-408,-631,-622,-598,-504,-497,-483,-1149,-1163,-1389,-1306,-1257,-1016,-2116,-1827]} 1. e4 {[%emt 0:00:05]} c5 {[%emt 0:00:20]} 2. Nf3 {[%emt 0:00:08]} d6 {[%emt 0:00:04]} 3. d4 {[%emt 0:00:31]} cxd4 {[%emt 0:00:07]} 4. Nxd4 {[%emt 0:00:12]} Nf6 {[%emt 0:00:05]} 5. f3 {[%emt 0:01:23]} e5 {[%emt 0:02:20]} 6. Nb3 {[%emt 0:00:21]} Be6 {[%emt 0:00:08]} 7. c4 {[%emt 0:00:09]} Be7 {[%emt 0:01:28]} (7... Nxe4 8. fxe4 Qh4+ 9. Kd2 $16) 8. Nc3 {[%emt 0:00:28] B55: Sicilian: 2...d6 3 d4 cxd4 4 Nxd4 Nf6 5 f3.} O-O {[%emt 0:01:50]} 9. Be3 {[%emt 0:00:12]} Na6 {[%emt 0:00:10] [#]} 10. Be2 $146 {[%emt 0:02:16] White is slightly better.} ({Predecessor:} 10. Qd2 Nc5 11. Be2 a6 12. Nc1 a5 13. O-O Nfd7 14. b3 f5 15. exf5 Rxf5 16. Nb5 {1-0 (35) Horvath,T (2360)-Skuhala,L (2114) Slovenia 2017}) 10... Rc8 {[%emt 0:05:39]} 11. Nd5 {[%emt 0:12:41]} Nd7 {[%emt 0:07:11]} 12. O-O {[%emt 0:14:11]} (12. Bxa7 $2 b6 13. c5 Naxc5 $19) (12. Qd2 $5 {[%cal Rb3a5]}) 12... Bg5 {[%emt 0:02:36]} 13. Qd2 {[%emt 0:01:07]} (13. Bxa7 b6 14. c5 Naxc5 $17) 13... Bxe3+ {[%emt 0:03:46]} 14. Nxe3 {[%emt 0:02:26]} Ndc5 {[%emt 0:00:33]} 15. Rfd1 {[%emt 0:07:10]} Nxb3 16. axb3 {[%emt 0:00:02]} Qb6 {[%emt 0:00:28]} 17. Ra3 {[%emt 0:04:21]} Nb4 {[%emt 0:00:56]} 18. Kh1 {[%emt 0:01:56]} a5 {[%emt 0:00:20]} 19. Nc2 {[%emt 0:03:11]} Nc6 {[%emt 0:00:24]} 20. Qe3 {[%emt 0:01:25]} ({Avoid the trap} 20. Qxd6 $2 Rfd8 21. c5 Qa7 22. Qxd8+ Rxd8 $19) 20... Qxe3 {[%emt 0:01:57]} 21. Nxe3 {[%emt 0:00:06]} Rcd8 {[%emt 0:01:00]} 22. Rd2 {[%emt 0:00:21]} g6 {[%emt 0:00:28][%cal Bg7g6,Bg6g5][%mdl 32]} 23. Kg1 {[%emt 0:00:20]} Kg7 {[%emt 0:00:09]} 24. Bd1 {[%emt 0:00:51]} f5 {[%emt 0:00:22]} 25. Bc2 {[%emt 0:01:49]} (25. exf5 $11 gxf5 26. f4) 25... f4 $15 {[%emt 0:01:02]} 26. Nd5 {[%emt 0:00:48]} Kf7 {[%emt 0:03:33]} 27. Ra1 {[%emt 0:15:56]} g5 {[%emt 0:01:01]} 28. Kf2 {[%emt 0:00:11]} Rg8 {[%emt 0:00:17]} 29. Bd1 {[%emt 0:03:53]} h5 {[%emt 0:00:21]} 30. Nc7 {[%emt 0:00:45]} b6 {[%emt 0:03:32]} 31. Nb5 {[%emt 0:00:20] Inhibits Nd4.} ({Better is} 31. b4 $1 $11) 31... Ke7 {[%emt 0:00:10]} 32. Be2 {[%emt 0:00:03]} Rg6 {[%emt 0:00:35]} 33. Rad1 {[%emt 0:00:04][%cal Rd2d6]} Bc8 {[%emt 0:01:30]} 34. Nc7 {[%emt 0:02:18]} Be6 {[%emt 0:02:25]} 35. Nb5 {[%emt 0:00:07] Inhibits Nd4.} ({Reject} 35. Nxe6 Kxe6 36. h3 Nd4 37. Rxd4 exd4 38. Rxd4 Rc8 $17) 35... Bf7 {[%emt 0:01:50]} 36. g3 {[%emt 0:15:56]} Nb4 {[%emt 0:00:26]} (36... h4 $15) 37. Rg1 {[%emt 0:00:55]} (37. gxf4 $1 $11 gxf4 38. Bf1) 37... fxg3+ {[%emt 0:00:55]} 38. hxg3 {[%emt 0:00:12]} Na6 {[%emt 0:00:23]} 39. Nc3 {[%emt 0:04:14]} Nc5 {[%emt 0:00:17]} 40. Bd1 {[%emt 0:00:00]} Rh8 {[%emt 0:00:00]} 41. Ke3 {[%emt 0:00:05]} Kd8 {[%emt 0:03:44]} 42. Rh1 {[%emt 0:11:42]} Kc7 {[%emt 0:02:37][%cal Bd8c7,Bc7c6,Bc6d7][%mdl 32]} 43. Bc2 {[%emt 0:05:02]} Rgh6 {[%emt 0:02:17]} 44. Nb5+ {[%emt 0:05:32]} Kc6 {[%emt 0:00:14]} 45. Na7+ {[%emt 0:00:22]} Kd7 {[%emt 0:00:18]} 46. Nb5 {[%emt 0:00:03]} h4 {[%emt 0:00:26]} 47. Rhd1 {[%emt 0:05:17][%cal Rb5d6]} Nb7 {[%emt 0:01:10]} 48. Nc3 {[%emt 0:00:58]} (48. Rg1 $11) 48... h3 {[%emt 0:04:23]} (48... hxg3 $17 {...Rh2 is the strong threat.} 49. Rg1 Rh3) 49. Rh2 $11 {[%emt 0:02:36]} Nc5 {[%emt 0:01:52][%cal Og5g4]} 50. Nd5 {[%emt 0:00:07]} Bxd5 {[%emt 0:01:52]} 51. exd5 {[%emt 0:00:15]} Kc7 {[%emt 0:00:17]} 52. Rdh1 {[%emt 0:02:12]} b5 {[%emt 0:00:27]} 53. cxb5 {[%emt 0:04:40]} Kb6 {[%emt 0:00:07] Black is more active.} 54. b4 {[%emt 0:01:22]} axb4 {[%emt 0:00:12]} 55. b3 {[%emt 0:02:56]} (55. Bd1 $17) 55... Kxb5 $19 {[%emt 0:00:22]} 56. Bf5 {[%emt 0:00:05]} (56. Rc1 $142) 56... Ra8 {[%emt 0:02:15]} ({Inferior is} 56... Nxb3 57. Bd3+ Kb6 58. Rb2 $17) 57. Bxh3 {[%emt 0:00:05] [#] And now Bf1+ would win.} Kb6 {[%emt 0:00:41] aiming for ...Rah8.} 58. Bf1 {[%emt 0:01:34]} Rxh2 {[%emt 0:00:10]} 59. Rxh2 {[%emt 0:00:01]} Nxb3 {[%emt 0:00:11][%mdl 4096] Endgame KRB-KRN} 60. Ke4 {[%emt 0:00:41]} (60. f4 $142 exf4+ 61. gxf4 gxf4+ 62. Kf3) 60... Nc5+ {[%emt 0:00:46] Black is clearly winning.} 61. Kf5 {[%emt 0:00:05]} b3 {[%emt 0:00:18][%cal Bb4b3,Bb3b2][%mdl 32] [#] Threatens to win with ...Ra2.} 62. Bc4 {[%emt 0:00:10]} Rf8+ {[%emt 0:00:50]} 63. Kxg5 {[%emt 0:01:27]} (63. Kg4 $142 Ka5 64. Bxb3 Nxb3 65. Rh6) 63... Rxf3 {[%emt 0:00:08]} 64. g4 {[%emt 0:00:05]} Ne4+ {[%emt 0:00:17]} 65. Kh6 {[%emt 0:00:13]} Kc5 {[%emt 0:00:08]} 66. Be2 {[%emt 0:00:05]} b2 {[%emt 0:00:55] Weighted Error Value: White=0.24 (precise) /Black=0.09 (flawless)} 0-1

[Event "Romanian Superleague 2022"]
[Site "Oradea"]
[Date "2022.09.22"]
[Round "2.12"]
[White "Pisu, Robert-Daniel"]
[Black "Vilcu, Matei-Stefan"]
[Result "1/2-1/2"]
[ECO "D13"]
[WhiteElo "2223"]
[BlackElo "2221"]
[Annotator "TA"]
[PlyCount "47"]
[EventDate "2022.09.21"]
[EventType "team-tourn"]
[EventCountry "ROU"]
[SourceTitle "playchess.com"]
[Source "ChessBase"]
[SourceQuality "1"]
[TimeControl "40/5400+30:1800+30"]

{[%evp 23,47,21,29,0,0,0,22,0,1,14,33,26,16,22,27,27,31,8,15,8,8,8,8,8,25,8]} 1. d4 {[%emt 0:00:03]} d5 {[%emt 0:00:07]} 2. c4 {[%emt 0:00:14]} c6 {[%emt 0:00:05]} 3. cxd5 {[%emt 0:00:55]} cxd5 {[%emt 0:00:05]} 4. Bf4 {[%emt 0:00:10]} Nf6 {[%emt 0:00:17]} 5. Nc3 {[%emt 0:00:41]} Nc6 {[%emt 0:00:04]} 6. e3 {[%emt 0:01:00]} a6 {[%emt 0:00:08]} 7. Bd3 {[%emt 0:00:39]} Bg4 {[%emt 0:00:47]} 8. Nf3 {[%emt 0:11:33]} e6 {[%emt 0:01:37]} 9. h3 {[%emt 0:04:25]} Bxf3 {[%emt 0:02:19]} 10. Qxf3 {[%emt 0:00:15]} Be7 {[%emt 0:02:58]} 11. Rc1 {[%emt 0:08:39]} Rc8 {[%emt 0:00:33]} 12. O-O {[%emt 0:16:52]} O-O {[%emt 0:00:55]} 13. Bg5 {[%emt 0:12:35] D13: Slav Defence: Exchange variation without ...Bf5.} h6 {[%emt 0:19:26]} 14. Bh4 {[%emt 0:01:38]} Nd7 {[%emt 0:14:08]} 15. Bxe7 {[%emt 0:02:08] The position is equal.} Qxe7 {[%emt 0:00:34] [#]} 16. Rfd1 $146 {[%emt 0:07:55]} ({Predecessor:} 16. a3 Nb6 17. Rc2 Na5 18. Rd1 Rfd8 19. Qg4 Rc7 20. Re1 Rdc8 21. e4 {½-½ (43) Hardyn,T (1500)-Koslowski,V (2323) LSS email 2014}) 16... f5 {[%emt 0:08:55]} 17. Ne2 {[%emt 0:15:28]} Qd6 {[%emt 0:08:10]} 18. Qf4 {[%emt 0:01:49]} Qxf4 {[%emt 0:01:58]} 19. Nxf4 {[%emt 0:00:04]} Kf7 {[%emt 0:00:14]} 20. Be2 {[%emt 0:01:36]} (20. g4 $5 {[%cal Rg4f5]}) 20... Ne7 {[%emt 0:03:04]} 21. Nd3 {[%emt 0:02:00]} Rxc1 {[%emt 0:02:14]} 22. Rxc1 {[%emt 0:00:02] [#] Threatens to win with Rc7.} Rc8 {[%emt 0:00:23] Inhibits Rc7.} 23. Rxc8 {[%emt 0:01:21]} Nxc8 {[%emt 0:00:40]} 24. Kf1 {[%emt 0:04:50] A balanced but interesting game.  Weighted Error Value: White=0.10 (very precise) /Black=0.02 (flawless)} 1/2-1/2

[Event "Romanian Superleague 2022"]
[Site "Oradea"]
[Date "2022.09.22"]
[Round "2.13"]
[White "Nguyen, Thai Dai Van"]
[Black "Sumets, Andrey"]
[Result "1-0"]
[ECO "C11"]
[WhiteElo "2627"]
[BlackElo "2513"]
[Annotator "TA"]
[PlyCount "65"]
[EventDate "2022.09.21"]
[EventType "team-tourn"]
[EventCountry "ROU"]
[SourceTitle "playchess.com"]
[Source "ChessBase"]
[SourceQuality "1"]
[TimeControl "40/5400+30:1800+30"]

{[%evp 20,65,16,0,0,0,2,0,-6,-16,0,0,19,18,21,0,39,12,44,48,43,54,78,80,83,72,79,78,64,60,137,105,309,157,131,147,535,90,623,245,732,727,606,346,29993,29994,29994,29995]} 1. e4 {[%emt 0:00:16]} e6 {[%emt 0:00:29]} 2. d4 {[%emt 0:00:14]} d5 {[%emt 0:00:04]} 3. Nc3 {[%emt 0:00:15]} Nf6 {[%emt 0:00:24]} 4. e5 {[%emt 0:00:09]} Nfd7 {[%emt 0:00:04]} 5. f4 {[%emt 0:00:09]} c5 {[%emt 0:00:05]} 6. Nf3 {[%emt 0:00:10]} Nc6 {[%emt 0:00:04]} 7. Be3 {[%emt 0:00:15]} a6 {[%emt 0:01:05]} 8. a3 {[%emt 0:08:08]} cxd4 {[%emt 0:09:52]} 9. Nxd4 {[%emt 0:00:14]} Bc5 {[%emt 0:00:08]} 10. Qd2 {[%emt 0:09:15]} O-O {[%emt 0:00:09]} 11. O-O-O {[%emt 0:02:40]} Nxd4 {[%emt 0:00:59] C11: French: Classical System: 4 e5 and 4 Bg5 dxe4.} 12. Bxd4 {[%emt 0:00:08]} b5 {[%emt 0:00:13]} 13. Bxc5 {[%emt 0:04:19]} Nxc5 {[%emt 0:00:51] The position is equal.} 14. h4 {[%emt 0:03:19][%cal Bh2h4,Bh4h5,Bh5h6][%mdl 32]} Qc7 {[%emt 0:07:23] [#]} 15. h5 $146 {[%emt 0:05:10]} ({Predecessor:} 15. Rh3 Bd7 16. h5 Rfc8 17. h6 g6 18. Qf2 Kf8 19. f5 gxf5 20. Re3 Ne4 21. Rxe4 fxe4 {½-½ (28) Inarkiev,E (2693)-Lupulescu,C (2643) Douglas 2019}) 15... Bb7 {[%emt 0:13:38]} 16. h6 {[%emt 0:09:09] Threatens to win with hxg7.} g6 {[%emt 0:00:58]} 17. Kb1 {[%emt 0:00:21]} Rac8 {[%emt 0:00:33]} 18. Rh3 {[%emt 0:03:47]} f5 {[%emt 0:11:53][%cal Og6g5]} 19. exf6 {[%emt 0:04:53]} Rxf6 {[%emt 0:00:41]} 20. g3 {[%emt 0:00:14]} Ne4 {[%emt 0:31:29]} 21. Nxe4 {[%emt 0:00:26]} dxe4 {[%emt 0:00:03]} 22. Rh2 $1 {[%emt 0:05:39]} Bd5 {[%emt 0:01:06]} 23. Qd4 {[%emt 0:04:08]} Rf7 {[%emt 0:00:31]} 24. Rhd2 {[%emt 0:06:16] White is more active.} Qb8 {[%emt 0:11:33]} (24... Qc5 $14) 25. Bh3 {[%emt 0:06:42]} Rc4 $2 {[%emt 0:00:30]} (25... Qc7 $16) 26. Qe3 {[%emt 0:00:02]} (26. Qg1 $18 {[%cal Oh3e6] And now Bxe6! would win.} Qb7 27. Rxd5 $1 {[%mdl 512]} exd5 28. Be6) 26... Qa7 $16 {[%emt 0:03:00]} 27. Qe2 {[%emt 0:17:03]} Rfc7 $2 {[%emt 0:02:13][%mdl 8192]} (27... Rf8 $16) 28. c3 $2 {[%emt 0:00:43]} (28. f5 $18 e3 {[#]} 29. Bg2 $1 (29. fxg6 hxg6 30. Rd3 Kh7 $11)) 28... Qb6 {[%emt 0:01:55][%mdl 8192]} (28... Re7 $16) 29. f5 $2 {[%emt 0:00:56]} (29. Rxd5 {White threatens Rd8+ and mate.} exd5 30. Rxd5) 29... gxf5 $2 {[%emt 0:01:54] [#]} (29... e3 30. Bg2 gxf5) 30. Bxf5 $1 $18 {[%emt 0:00:05][%mdl 512]} e3 {[%emt 0:00:44]} (30... exf5 31. Rxd5) 31. Bxe6+ {[%emt 0:06:37]} Bxe6 $2 {[%emt 0:00:07]} (31... Qxe6 $18 32. Rxd5 Re7 33. Rg5+ Kh8 34. Rd8+ Re8 35. Rxe8+ Qxe8) 32. Rd8+ {[%emt 0:00:07]} Kf7 {[%emt 0:00:03]} 33. Qh5+ {[%emt 0:00:22] Weighted Error Value: White=0.89/Black=0.96} 1-0

[Event "Romanian Superleague 2022"]
[Site "Oradea"]
[Date "2022.09.22"]
[Round "2.14"]
[White "Cioara, Andrei-Nestor"]
[Black "Nisipeanu, Liviu-Dieter"]
[Result "0-1"]
[ECO "E68"]
[WhiteElo "2407"]
[BlackElo "2633"]
[Annotator "TA"]
[PlyCount "64"]
[EventDate "2022.09.21"]
[EventType "team-tourn"]
[EventCountry "ROU"]
[SourceTitle "playchess.com"]
[Source "ChessBase"]
[SourceQuality "1"]
[TimeControl "40/5400+30:1800+30"]

{[%evp 23,64,31,18,31,43,35,39,37,35,42,83,79,85,86,87,60,68,53,64,76,53,68,66,47,54,0,3,-38,19,31,23,-140,-156,-346,-354,-342,-320,-364,-364,-1861,-1795,-1479,-1382]} 1. d4 {[%emt 0:00:02]} Nf6 {[%emt 0:00:06]} 2. c4 {[%emt 0:00:10]} g6 {[%emt 0:00:05]} 3. g3 {[%emt 0:00:27]} Bg7 {[%emt 0:00:05]} 4. Bg2 {[%emt 0:00:07]} O-O {[%emt 0:00:05]} 5. Nc3 {[%emt 0:00:11]} d6 {[%emt 0:00:04]} 6. Nf3 {[%emt 0:00:04]} Nbd7 {[%emt 0:00:06]} 7. O-O {[%emt 0:00:13]} e5 {[%emt 0:00:04]} 8. e4 {[%emt 0:00:06]} exd4 {[%emt 0:00:05]} 9. Nxd4 {[%emt 0:00:03]} Re8 {[%emt 0:00:07]} 10. h3 {[%emt 0:01:15]} Nc5 {[%emt 0:00:11]} 11. Re1 {[%emt 0:00:04]} a5 {[%emt 0:00:05]} 12. Ndb5 {[%emt 0:01:26]} Bd7 {[%emt 0:00:14]} 13. Bf4 {[%emt 0:00:35][%cal Ob5c7] E68: King's Indian: Fianchetto: 6...Nbd7 7 0-0 e5 8 e4.} Bxb5 $1 {[%emt 0:00:32] The main line 13...Bxb5 scores better than 13...Bc6.} 14. cxb5 {[%emt 0:00:05]} Nfd7 {[%emt 0:00:07]} 15. Qc2 {[%emt 0:00:31] White is slightly better.} h5 {[%emt 0:00:06]} 16. Be3 {[%emt 0:00:15] [#]} c6 $146 {[%emt 0:26:36]} ({Predecessor:} 16... Bxc3 17. bxc3 Re6 18. h4 Qe7 19. Bd2 Re8 20. f3 Ne5 21. c4 f6 22. Bxa5 g5 {½-½ (43) Dimitrov,M (2429)-Pierzak,R (2521) ICCF email 2019}) 17. Rad1 {[%emt 0:01:31] [#] Black must now prevent bxc6.} Qe7 {[%emt 0:11:24]} 18. e5 {[%emt 0:22:31]} d5 {[%emt 0:04:39]} 19. f4 {[%emt 0:00:23]} h4 $1 {[%emt 0:07:13]} 20. gxh4 {[%emt 0:20:15]} Qxh4 {[%emt 0:00:55]} 21. bxc6 {[%emt 0:01:09]} bxc6 {[%emt 0:00:05]} 22. Ne2 {[%emt 0:00:16]} Bf8 {[%emt 0:06:17]} 23. Nd4 {[%emt 0:01:48]} Rac8 {[%emt 0:03:39]} 24. Nf3 {[%emt 0:17:48]} ({White should try} 24. Rf1 $14) 24... Qg3 {[%emt 0:04:20]} 25. Ng5 {[%emt 0:22:04]} Ne6 {[%emt 0:03:00]} (25... Be7 $15) 26. Nxe6 $11 {[%emt 0:02:00]} Rxe6 {[%emt 0:00:09]} 27. Bf2 $2 {[%emt 0:03:24] [#]} (27. Qc1 $11 g5 28. fxg5 Nxe5 29. Bf2 Nf3+ 30. Kf1 Nh2+ 31. Kg1 Nf3+ 32. Kf1 Rxe1+ 33. Rxe1 Nh2+ 34. Kg1 Nf3+ 35. Kf1 Nh2+ 36. Kg1 Nf3+ 37. Kf1) 27... Qxf4 $17 {[%emt 0:00:30]} 28. Bxd5 $2 {[%emt 0:00:46] This costs White the game.} (28. Rxd5 $17 {keeps fighting.} Nxe5 29. Rxa5) 28... cxd5 $19 {[%emt 0:01:09]} 29. Qxc8 {[%emt 0:00:07]} Nxe5 {[%emt 0:00:10] The board is on fire.} 30. Rxe5 {[%emt 0:02:28]} Rxe5 {[%emt 0:00:24]} (30... Qxe5 $2 {loses.} 31. Qd8 $19) 31. Rd4 $2 {[%emt 0:01:21]} (31. Qc1 Rg5+ 32. Kf1) 31... Rg5+ {[%emt 0:01:31]} 32. Kf1 {[%emt 0:00:08]} Qf3 {[%emt 0:00:06] Weighted Error Value: White=0.53/Black=0.09 (flawless)} 0-1

[Event "Romanian Superleague 2022"]
[Site "Oradea"]
[Date "2022.09.22"]
[Round "2.15"]
[White "Mendonca, Leon Luke"]
[Black "Stepanencu, Nicodim-Cosmin"]
[Result "1-0"]
[ECO "D45"]
[WhiteElo "2558"]
[BlackElo "2289"]
[Annotator "TA"]
[PlyCount "101"]
[EventDate "2022.09.21"]
[EventType "team-tourn"]
[EventCountry "ROU"]
[SourceTitle "playchess.com"]
[Source "ChessBase"]
[SourceQuality "1"]
[TimeControl "40/5400+30:1800+30"]

{[%evp 16,101,9,4,0,0,0,0,52,12,22,28,34,34,37,52,50,41,74,88,107,75,70,76,81,66,230,200,207,204,194,209,196,206,196,99,124,97,138,125,123,123,131,127,134,0,76,92,128,79,83,81,167,160,216,208,558,551,582,550,503,511,568,234,188,197,226,242,196,26,616,611,606,582,619,606,933,843,29989,2795,29989,29990,29993,29993,29993,29989,29989,29990]} 1. d4 {[%emt 0:00:05]} d5 {[%emt 0:00:05]} 2. c4 {[%emt 0:00:19]} c6 {[%emt 0:00:05]} 3. Nc3 {[%emt 0:00:22]} Nf6 {[%emt 0:00:06]} 4. e3 {[%emt 0:00:14]} e6 {[%emt 0:00:33]} 5. Nf3 {[%emt 0:00:22]} Nbd7 {[%emt 0:00:05]} 6. Be2 {[%emt 0:00:24]} Bd6 {[%emt 1:32:36]} 7. O-O {[%emt 0:00:33]} O-O {[%emt 0:00:00]} 8. b3 {[%emt 0:00:19]} Qe7 {[%emt 0:00:00]} 9. Bb2 {[%emt 0:07:06]} b6 {[%emt 0:00:00] D45: Semi-Slav: 5 e3.} 10. Bd3 $5 {[%emt 0:02:19][%mdl 4] Leaves trodden paths.} Bb7 {[%emt 0:00:00]} 11. Re1 {[%emt 0:07:20]} e5 {[%emt 0:00:00]} (11... Rfd8 $11) 12. dxe5 {[%emt 0:08:17]} Nxe5 {[%emt 0:00:00]} 13. cxd5 {[%emt 0:01:35] [#]} Nxd5 $146 {[%emt 0:00:00]} ({Predecessor:} 13... cxd5 14. Nb5 Nxd3 15. Qxd3 Bc5 16. Nfd4 g6 17. a3 a6 18. b4 axb5 19. bxc5 bxc5 20. Nxb5 {1-0 (62) Morefield,J (2242)-Girsh,D (2076) Dulles 2022}) 14. Nxd5 {[%emt 0:02:54]} Nxf3+ {[%emt 0:00:00]} 15. Qxf3 {[%emt 0:00:30]} cxd5 {[%emt 0:00:00]} 16. e4 {[%emt 0:17:48][%cal Be3e4,Be4e5][%mdl 32]} Rfe8 {[%emt 0:00:00][%cal Rd5e4]} 17. e5 $40 {[%emt 0:02:47][%mdl 128] White goes for the king.} Bb4 {[%emt 0:00:00]} 18. Re2 {[%emt 0:05:52] Threatens to win with a3.} Qg5 {[%emt 0:00:00]} 19. a3 {[%emt 0:21:11]} Bf8 {[%emt 0:00:00]} 20. Rae1 {[%emt 0:00:45] And now e6 would win.} Re7 {[%emt 0:02:50]} ({Better is} 20... Bc8 $14) 21. Bc1 {[%emt 0:01:31]} Qh4 {[%emt 0:00:07]} 22. g3 $1 {[%emt 0:02:52]} Qd4 {[%emt 0:00:02]} 23. Bb2 {[%emt 0:01:29]} Qc5 {[%emt 0:00:02]} 24. b4 {[%emt 0:07:52]} Qc7 {[%emt 0:01:43][%cal Od5d4] [#]} 25. Bd4 {[%emt 0:05:27]} (25. e6 $1 $18 {Threatening mate with Qf5.} d4 26. Qf5) 25... Rae8 {[%emt 0:04:46]} 26. h4 {[%emt 0:01:22][%cal Bh2h4,Bh4h5][%mdl 32] White is much more active.} g6 {[%emt 0:00:00]} 27. h5 {[%emt 0:01:19] aiming for Bb5.} Bg7 {[%emt 0:00:00]} 28. Qf4 {[%emt 0:00:37]} Re6 {[%emt 0:00:00]} 29. Qg5 {[%emt 0:00:46]} Qe7 {[%emt 0:01:07]} 30. Qf4 {[%emt 0:00:34]} (30. Qe3 $16) 30... Bc6 {[%emt 0:00:46]} (30... Qc7 $1 $11 {remains equal.}) 31. Kg2 $16 {[%emt 0:00:36]} Qd7 {[%emt 0:00:29]} 32. Bb1 {[%emt 0:00:28]} (32. Re3 $142) 32... Bb5 {[%emt 0:00:09]} 33. Re3 {[%emt 0:00:09]} Bc4 {[%emt 0:00:51]} (33... Rc8 $16) 34. Qg4 $18 {[%emt 0:00:37]} Qe7 {[%emt 0:00:37]} (34... Bb5 $16 {was necessary.} 35. hxg6 hxg6) 35. f4 {[%emt 0:00:29]} Qf8 $2 {[%emt 0:00:30]} (35... Bb5 36. hxg6 hxg6) 36. f5 {[%emt 0:00:35]} gxf5 {[%emt 0:00:10]} 37. Qxf5 {[%emt 0:00:20][%csl Gb1][%cal Rf5h7]} Rh6 {[%emt 0:00:02]} 38. g4 {[%emt 0:00:25] Black must now prevent g5.} Ba6 {[%emt 0:00:13]} 39. Qf3 {[%emt 0:00:56]} (39. g5 $142 Bc8 40. e6 fxe6 41. Qxf8+ Rxf8 42. Bxg7 (42. gxh6 Bxd4 43. Rf3 Rxf3 $18) 42... Rxh5 43. Bxf8 Rxg5+ 44. Rg3 Rxg3+ 45. Kxg3 Kxf8 46. Rh1) 39... Qe7 {[%emt 0:00:10]} 40. Qf4 {[%emt 0:00:00] Against Qg5} Bc8 {[%emt 0:00:00]} 41. Rh1 {[%emt 0:06:24][%cal Be1h1,Bh1h5,Bh5g5][%mdl 32]} Re6 {[%emt 0:05:43][%cal Rg7e5]} 42. Bf5 $2 {[%emt 0:11:02]} (42. Rf1 $18) 42... Rc6 $2 {[%emt 0:04:28][%mdl 8192]} (42... Bh6 $11 43. g5 Bxg5) 43. h6 {[%emt 0:01:44]} Bh8 {[%emt 0:05:53]} 44. Rh5 {[%emt 0:01:29][%cal Oe5e6] Strongly threatening e6!} Qc7 {[%emt 0:07:51]} 45. Rg5+ {[%emt 0:03:18]} Rg6 {[%emt 0:00:52]} 46. Rc3 {[%emt 0:02:13]} Qb8 {[%emt 0:02:13]} 47. Bxc8 {[%emt 0:02:29]} (47. Bxg6 $142 hxg6 {[#]} 48. Rxg6+ $3 {[%mdl 512]} Kf8 49. h7 Ke7 50. Qg5+ Kd7 51. Qf5+ Ke7 52. Qg5+ Kd7 53. Rg8) 47... Rxc8 {[%emt 0:00:17]} 48. e6 {[%emt 0:00:12][%csl Ge6][%cal Rf4f7] White mates.} f6 {[%emt 0:08:30]} 49. Rxg6+ {[%emt 0:00:26]} hxg6 {[%emt 0:00:01]} 50. Qxb8 {[%emt 0:00:16]} Rxb8 {[%emt 0:00:03]} 51. Rc7 {[%emt 0:00:04] Weighted Error Value: White=0.28 (precise) /Black=0.59} 1-0